bitfinex-derivatives/quotes_BNBF0:USTF0_20230830
["timestamp","ask_amount","ask_price","bid_price","bid_amount"]
[1693415603193,0.0733325,222.7,222.48,0.82193782]
[1693415603395,0.0733325,222.7,222.45,0.07303961]
[1693415603594,0.0733325,222.7,222.46,0.82200991]
[1693415605395,0.0733325,222.69,222.46,0.82200991]
[1693415608096,0.0733325,222.69,222.46,0.89504952]
[1693415608396,0.0733325,222.69,222.47,0.82200991]
[1693415622108,0.0733325,222.69,222.48,0.82200991]
[1693415622309,0.0733325,222.69,222.45,0.07303961]
[1693415622503,0.0733325,222.69,222.46,0.82221479]
[1693415623006,0.0733325,222.68,222.46,0.82221479]
[1693415624409,0.0733325,222.69,222.46,0.82221479]
[1693415626609,0.0733325,222.68,222.46,0.82221479]
[1693415632218,0.0733325,222.68,222.46,0.8952544]
[1693415632516,0.0733325,222.68,222.47,0.82221479]
[1693415637422,0.0733325,222.67,222.47,0.82221479]
[1693415645121,0.0733325,222.67,222.46,0.82221479]
[1693415645326,0.0733325,222.67,222.46,0.8952544]
[1693415645528,0.0733325,222.67,222.47,0.82221479]
[1693415646122,0.0733325,222.68,222.47,0.82221479]
[1693415648227,0.0733325,222.67,222.47,0.82221479]
[1693415651131,0.0733325,222.67,222.47,0.8952544]
[1693415651426,0.0733325,222.67,222.48,0.82221479]
[1693415653125,0.0733325,222.67,222.46,0.07303961]
[1693415653326,0.0733325,222.67,222.42,0.07303961]
[1693415653327,0.0733325,222.62,222.42,0.07303961]
[1693415653533,0.0733325,222.63,222.38,0.07303961]
[1693415653832,0.0733325,222.63,222.39,0.82355605]
[1693415654334,0.0733325,222.64,222.39,0.82355605]
[1693415654532,0.0733325,222.65,222.39,0.82355605]
[1693415654734,0.0733325,222.65,222.38,0.82355605]
[1693415654934,0.0733325,222.65,222.39,0.82355605]
[1693415655135,0.0733325,222.65,222.38,0.82355605]
[1693415655438,0.0733325,222.64,222.38,0.82355605]
[1693415655627,0.0733325,222.65,222.38,0.82355605]
[1693415655832,0.0733325,222.66,222.39,0.82355605]
[1693415656029,0.0733325,222.66,222.4,0.82355605]
[1693415656235,0.0733325,222.66,222.41,0.82355605]
[1693415656435,0.0733325,222.66,222.37,0.82355605]
[1693415656631,0.0733325,222.66,222.38,0.82355605]
[1693415656830,0.0733325,222.66,222.37,0.82355605]
[1693415657032,0.0733325,222.66,222.38,0.82355605]
[1693415657229,0.0733325,222.66,222.37,0.82355605]
[1693415657434,0.0733325,222.66,222.38,0.82355605]
[1693415657632,0.0733325,222.67,222.37,0.82355605]
[1693415657835,0.0733325,222.67,222.38,0.82355605]
[1693415658137,0.0733325,222.67,222.39,0.82355605]
[1693415658430,0.0733325,222.67,222.4,0.82355605]
[1693415658635,0.0733325,222.67,222.36,0.82355605]
[1693415658835,0.0733325,222.67,222.37,0.82355605]
[1693415659035,0.0733325,222.67,222.38,0.82355605]
[1693415659235,0.0733325,222.67,222.39,0.82355605]
[1693415659429,0.0733325,222.67,222.4,0.82355605]
[1693415659632,0.0733325,222.67,222.41,0.82355605]
[1693415659833,0.0733325,222.67,222.42,0.82355605]
[1693415660137,0.0733325,222.67,222.34,0.07303961]
[1693415660335,0.0733325,222.67,222.35,0.82365404]
[1693415660530,0.0733325,222.68,222.35,0.82365404]
[1693415664735,0.0733325,222.68,222.34,0.82365404]
[1693415665042,0.0733325,222.68,222.35,0.82365404]
[1693415665341,0.0733325,222.69,222.36,0.82365404]
[1693415665533,0.0733325,222.69,222.34,0.82365404]
[1693415665738,0.0733325,222.69,222.35,0.82365404]
[1693415665939,0.0733325,222.69,222.34,0.82365404]
[1693415666141,0.0733325,222.69,222.35,0.82365404]
[1693415666336,0.0733325,222.69,222.34,0.82365404]
[1693415666542,0.0733325,222.69,222.35,0.82365404]
[1693415666842,0.0733325,222.69,222.36,0.82365404]
[1693415667042,0.0733325,222.69,222.37,0.82365404]
[1693415667240,0.0733325,222.69,222.38,0.82365404]
[1693415667440,0.0733325,222.69,222.39,0.82365404]
[1693415667642,0.0733325,222.69,222.34,0.82365404]
[1693415667841,0.0733325,222.69,222.35,0.82365404]
[1693415668041,0.0733325,222.69,222.34,0.82365404]
[1693415668241,0.0733325,222.69,222.35,0.82365404]
[1693415668540,0.0733325,222.69,222.36,0.82365404]
[1693415668739,0.0733325,222.69,222.34,0.82365404]
[1693415669041,0.0733325,222.69,222.35,0.82365404]
[1693415669245,0.0733325,222.69,222.36,0.82365404]
[1693415669443,0.0733325,222.69,222.37,0.82365404]
[1693415669644,0.0733325,222.69,222.38,0.82365404]
[1693415669845,0.0733325,222.69,222.39,0.82365404]
[1693415670045,0.0733325,222.69,222.34,0.82365404]
[1693415670239,0.0733325,222.69,222.35,0.82365404]
[1693415670444,0.0733325,222.69,222.36,0.82365404]
[1693415670644,0.0733325,222.69,222.37,0.82365404]
[1693415670844,0.0733325,222.69,222.38,0.82365404]
[1693415671040,0.0733325,222.69,222.34,0.82365404]
[1693415671245,0.0733325,222.69,222.35,0.82365404]
[1693415671440,0.0733325,222.69,222.34,0.82365404]
[1693415671644,0.0733325,222.69,222.35,0.82365404]
[1693415671840,0.0733325,222.69,222.36,0.82365404]
[1693415672145,0.0733325,222.69,222.37,0.82365404]
[1693415672447,0.0733325,222.68,222.38,0.82365404]
[1693415672649,0.0733325,222.68,222.39,0.82365404]
[1693415672947,0.0733325,222.68,222.4,0.82365404]
[1693415673141,0.0733325,222.68,222.34,0.82365404]
[1693415673340,0.0733325,222.68,222.35,0.82365404]
[1693415673546,0.0733325,222.68,222.34,0.82365404]
[1693415673847,0.0733325,222.68,222.35,0.82365404]
[1693415674048,0.0733325,222.68,222.34,0.82365404]
[1693415674248,0.0733325,222.68,222.35,0.82365404]
[1693415674447,0.0733325,222.68,222.36,0.82365404]
[1693415674644,0.0733325,222.68,222.37,0.82365404]
[1693415674845,0.0733325,222.68,222.38,0.82365404]
[1693415675145,0.0733325,222.68,222.39,0.82365404]
[1693415675345,0.0733325,222.68,222.4,0.82365404]
[1693415675543,0.0733325,222.68,222.41,0.82365404]
[1693415675748,0.0733325,222.68,222.35,0.82365404]
[1693415675951,0.0733325,222.68,222.36,0.82365404]
[1693415676248,0.0733325,222.68,222.37,0.82365404]
[1693415676449,0.0733325,222.68,222.35,0.82365404]
[1693415676650,0.0733325,222.68,222.36,0.82365404]
[1693415676849,0.0733325,222.68,222.35,0.82365404]
[1693415677050,0.0733325,222.68,222.36,0.82365404]
[1693415677249,0.0733325,222.68,222.35,0.82365404]
[1693415677449,0.0733325,222.68,222.36,0.82365404]
[1693415677649,0.0733325,222.68,222.35,0.82365404]
[1693415677849,0.0733325,222.68,222.36,0.82365404]
[1693415678045,0.0733325,222.68,222.37,0.82365404]
[1693415678250,0.0733325,222.68,222.38,0.82365404]
[1693415678451,0.0733325,222.68,222.35,0.82365404]
[1693415678751,0.0733325,222.68,222.36,0.82365404]
[1693415678948,0.0733325,222.68,222.35,0.82365404]
[1693415679150,0.0733325,222.68,222.36,0.82365404]
[1693415679351,0.0733325,222.68,222.37,0.82365404]
[1693415679551,0.0733325,222.68,222.35,0.82365404]
[1693415679751,0.0733325,222.68,222.36,0.82365404]
[1693415679946,0.0733325,222.68,222.34,0.07303961]
[1693415679947,0.0733325,222.68,222.35,0.82365404]
[1693415680150,0.0733325,222.68,222.36,0.82365404]
[1693415680350,0.0733325,222.68,222.37,0.82365404]
[1693415680547,0.0733325,222.67,222.38,0.82365404]
[1693415680747,0.0733325,222.67,222.36,0.82365404]
[1693415680950,0.0733325,222.67,222.37,0.82365404]
[1693415681148,0.0733325,222.67,222.36,0.82365404]
[1693415681347,0.0733325,222.67,222.37,0.82365404]
[1693415681551,0.0733325,222.67,222.38,0.82365404]
[1693415681752,0.0733325,222.67,222.36,0.82365404]
[1693415681953,0.0733325,222.67,222.37,0.82365404]
[1693415682152,0.0733325,222.67,222.36,0.82365404]
[1693415682348,0.0733325,222.67,222.37,0.82365404]
[1693415682553,0.0733325,222.66,222.38,0.82365404]
[1693415682755,0.0733325,222.66,222.35,0.07303961]
[1693415682756,0.0733325,222.66,222.39,0.82365404]
[1693415682952,0.0733325,222.66,222.36,0.82365404]
[1693415683156,0.0733325,222.66,222.37,0.82365404]
[1693415683455,0.0733325,222.66,222.38,0.82365404]
[1693415683650,0.0733325,222.66,222.37,0.82365404]
[1693415683848,0.0733325,222.66,222.38,0.82365404]
[1693415684053,0.0733325,222.66,222.39,0.82365404]
[1693415684254,0.0733325,222.66,222.4,0.82365404]
[1693415684452,0.0733325,222.65,222.37,0.82365404]
[1693415684651,0.0733325,222.65,222.38,0.82365404]
[1693415684858,0.0733325,222.65,222.37,0.82365404]
[1693415685057,0.0733325,222.65,222.38,0.82365404]
[1693415685257,0.0733325,222.65,222.39,0.82365404]
[1693415685451,0.0733325,222.65,222.4,0.82365404]
[1693415685654,0.0733325,222.65,222.41,0.82365404]
[1693415685854,0.0733325,222.65,222.38,0.82365404]
[1693415686051,0.0733325,222.65,222.37,0.07303961]
[1693415686052,0.0733325,222.65,222.39,0.82365404]
[1693415686251,0.0733325,222.65,222.38,0.82365404]
[1693415686456,0.0733325,222.64,222.39,0.82365404]
[1693415686651,0.0733325,222.63,222.39,0.82365404]
[1693415687657,0.0733325,222.61,222.41,0.07303961]
[1693415687957,0.0733325,222.61,222.42,0.82365404]
[1693415696055,0.0733325,222.61,222.41,0.07303961]
[1693415696256,0.0733325,222.61,222.42,0.8238256]
[1693415696561,0.0733325,222.61,222.41,0.07303961]
[1693415699366,0.0733325,222.61,222.42,0.82384442]
[1693415699561,0.0733325,222.61,222.41,0.07303961]
[1693415701465,0.0733325,222.61,222.42,0.82388968]
[1693415705875,0.0733325,222.66,222.46,0.07303961]
[1693415706070,0.0733325,222.68,222.48,0.07303961]
[1693415706382,0.0733325,222.68,222.49,0.82388968]
[1693415706973,0.0733325,222.72,222.49,0.82388968]
[1693415707173,0.0733325,222.72,222.46,0.82388968]
[1693415707472,0.0733325,222.72,222.47,0.82304325]
[1693415707671,0.0733325,222.73,222.46,0.82304325]
[1693415707973,0.0733325,222.73,222.47,0.82304325]
[1693415708172,0.0733325,222.73,222.45,0.82304325]
[1693415708474,0.0733325,222.73,222.46,0.82304325]
[1693415708674,0.0733325,222.73,222.45,0.82304325]
[1693415708873,0.0733325,222.74,222.46,0.82304325]
[1693415709074,0.0733325,222.74,222.47,0.82304325]
[1693415709374,0.0733325,222.74,222.48,0.82304325]
[1693415709567,0.0733325,222.74,222.43,0.07303961]
[1693415709568,0.0733325,222.74,222.44,0.82304325]
[1693415709773,0.0733325,222.75,222.45,0.82304325]
[1693415710073,0.0733325,222.75,222.46,0.82304325]
[1693415710274,0.0733325,222.75,222.47,0.82304325]
[1693415710470,0.0733325,222.75,222.48,0.82304325]
[1693415710671,0.0733325,222.75,222.49,0.82304325]
[1693415710974,0.0733325,222.75,222.41,0.07303961]
[1693415711167,0.0733325,222.75,222.42,0.89603972]
[1693415711368,0.0733325,222.75,222.43,0.82300011]
[1693415711568,0.0733325,222.76,222.43,0.82300011]
[1693415711776,0.0733325,222.76,222.42,0.82300011]
[1693415711971,0.0733325,222.76,222.43,0.82300011]
[1693415712274,0.0733325,222.76,222.44,0.82300011]
[1693415712475,0.0733325,222.76,222.45,0.82300011]
[1693415712775,0.0733325,222.76,222.46,0.82300011]
[1693415712975,0.0733325,222.76,222.41,0.82300011]
[1693415713177,0.0733325,222.76,222.42,0.82300011]
[1693415713475,0.0733325,222.76,222.43,0.82300011]
[1693415713677,0.0733325,222.77,222.44,0.82300011]
[1693415713870,0.0733325,222.77,222.45,0.82300011]
[1693415714070,0.0733325,222.77,222.46,0.82300011]
[1693415714275,0.0733325,222.77,222.47,0.82300011]
[1693415714472,0.0733325,222.77,222.41,0.82300011]
[1693415714678,0.0733325,222.77,222.42,0.82300011]
[1693415714872,0.0733325,222.77,222.41,0.82300011]
[1693415715070,0.0733325,222.77,222.42,0.82300011]
[1693415715377,0.0733325,222.77,222.41,0.82300011]
[1693415715576,0.0733325,222.77,222.42,0.82300011]
[1693415715878,0.0733325,222.78,222.43,0.82300011]
[1693415716072,0.0733325,222.78,222.44,0.82300011]
[1693415716373,0.0733325,222.78,222.45,0.82300011]
[1693415716578,0.0733325,222.78,222.46,0.82300011]
[1693415716775,0.0733325,222.78,222.39,0.07303961]
[1693415716776,0.0733325,222.78,222.47,0.82300011]
[1693415717078,0.0733325,222.78,222.48,0.82300011]
[1693415717376,0.0733325,222.78,222.49,0.82300011]
[1693415717673,0.0733325,222.78,222.39,0.07303961]
[1693415717877,0.0733325,222.78,222.4,0.82257596]
[1693415720473,0.0733325,222.79,222.4,0.82257596]
[1693415725487,0.0733325,222.8,222.4,0.89561557]
[1693415725683,0.0733325,222.8,222.41,0.82257596]
[1693415726584,0.0733325,222.79,222.41,0.82257596]
[1693415727287,0.0733325,222.8,222.41,0.82257596]
[1693415730486,0.0733325,222.79,222.41,0.89561557]
[1693415730689,0.0733325,222.79,222.42,0.82257596]
[1693415732592,0.0733325,222.79,222.42,0.89561557]
[1693415732788,0.0733325,222.79,222.43,0.82257596]
[1693415733494,0.0733325,222.79,222.43,0.89561557]
[1693415733691,0.0733325,222.79,222.44,0.82257596]
[1693415734091,0.0733325,222.78,222.44,0.82257596]
[1693415734291,0.0733325,222.78,222.43,0.82257596]
[1693415734492,0.0733325,222.78,222.44,0.82257596]
[1693415735694,0.0733325,222.82,222.47,0.07303961]
[1693415735890,0.0733325,222.83,222.48,0.82257596]
[1693415736693,0.0733325,222.84,222.48,0.89561557]
[1693415736889,0.0733325,222.84,222.49,0.82257596]
[1693415737096,0.0733325,222.83,222.49,0.89561557]
[1693415737394,0.0733325,222.83,222.5,0.82257596]
[1693415737789,2.4444167,222.97,222.51,0.82257596]
[1693415737790,0.0733325,222.84,222.51,0.82257596]
[1693415737994,0.0733325,222.84,222.52,0.82257596]
[1693415738194,0.0733325,222.84,222.53,0.82257596]
[1693415738395,0.0733325,222.84,222.54,0.82257596]
[1693415738599,0.0733325,222.84,222.49,0.82257596]
[1693415738799,0.0733325,222.83,222.5,0.82257596]
[1693415739299,0.0733325,222.83,222.51,0.82257596]
[1693415739499,0.0733325,222.83,222.52,0.82257596]
[1693415739697,0.0733325,222.84,222.53,0.82257596]
[1693415739898,0.0733325,222.83,222.49,0.89561557]
[1693415740092,0.0733325,222.83,222.5,0.82257596]
[1693415740998,0.0733325,222.82,222.49,0.89561557]
[1693415741200,0.0733325,222.82,222.5,0.82257596]
[1693415741795,0.0733325,222.83,222.5,0.82257596]
[1693415742400,0.0733325,222.82,222.5,0.82257596]
[1693415742596,0.0733325,222.83,222.5,0.82257596]
[1693415743103,0.0733325,222.83,222.51,0.82257596]
[1693415743300,0.0733325,222.83,222.52,0.82257596]
[1693415743599,0.0733325,222.83,222.53,0.82257596]
[1693415743800,0.0733325,222.83,222.54,0.82257596]
[1693415744099,0.0733325,222.83,222.55,0.82257596]
[1693415744298,0.0733325,222.83,222.49,0.82257596]
[1693415744600,0.0733325,222.83,222.5,0.82257596]
[1693415744803,0.0733325,222.83,222.49,0.82257596]
[1693415745007,0.0733325,222.83,222.5,0.82257596]
[1693415745198,0.0733325,222.83,222.48,0.07303961]
[1693415745199,0.0733325,222.83,222.49,0.82257596]
[1693415745401,0.0733325,222.83,222.24,0.97386152]
[1693415745595,0.07337319,222.83,222.47,0.07317901]
[1693415745900,0.07337319,222.83,222.48,0.82257596]
[1693415748395,2.44577304,222.96,222.48,0.82257596]
[1693415748396,0.07337319,222.79,222.48,0.82257596]
[1693415748601,0.07337319,222.79,222.49,0.82257596]
[1693415748802,0.07337319,222.79,222.44,0.82257596]
[1693415749004,0.07337319,222.79,222.45,0.82257596]
[1693415749202,0.07337319,222.79,222.44,0.82257596]
[1693415749402,0.07337319,222.79,222.45,0.82257596]
[1693415749602,0.07337319,222.79,222.44,0.82257596]
[1693415749803,0.07337319,222.78,222.45,0.82257596]
[1693415750005,0.07337319,222.78,222.44,0.82257596]
[1693415750203,0.07337319,222.78,222.45,0.82257596]
[1693415750403,0.07337319,222.78,222.44,0.82257596]
[1693415750603,0.07337319,222.78,222.45,0.82257596]
[1693415750899,0.07337319,222.78,222.46,0.82257596]
[1693415751104,0.07337319,222.78,222.47,0.82257596]
[1693415751297,0.07337319,222.78,222.48,0.82257596]
[1693415751497,0.07337319,222.78,222.44,0.82257596]
[1693415753704,0.07337319,222.78,222.44,0.89575497]
[1693415753903,0.07337319,222.78,222.45,0.82257596]
[1693415755004,0.07337319,222.77,222.45,0.82257596]
[1693415756305,0.07337319,222.77,222.46,0.82257596]
[1693415756506,0.07337319,222.77,222.43,0.07317901]
[1693415756507,0.07337319,222.76,222.44,0.82257596]
[1693415756706,0.07337319,222.76,222.45,0.82257596]
[1693415756909,0.07337319,222.76,222.44,0.82257596]
[1693415757108,0.07337319,222.76,222.45,0.82257596]
[1693415757409,0.07337319,222.76,222.46,0.82257596]
[1693415757604,0.07337319,222.76,222.44,0.82257596]
[1693415757810,0.07337319,222.76,222.45,0.82257596]
[1693415758109,0.07337319,222.76,222.46,0.82257596]
[1693415758408,0.07337319,222.76,222.43,0.07317901]
[1693415758409,0.07337319,222.76,222.47,0.82257596]
[1693415758609,0.07337319,222.76,222.44,0.82257596]
[1693415758812,0.07337319,222.76,222.45,0.82257596]
[1693415759109,0.07337319,222.76,222.43,0.07317901]
[1693415759110,0.07337319,222.76,222.46,0.82257596]
[1693415759309,0.07337319,222.76,222.44,0.82257596]
[1693415759510,0.07337319,222.76,222.45,0.82257596]
[1693415759708,0.07337319,222.76,222.44,0.82257596]
[1693415759909,0.07337319,222.76,222.45,0.82257596]
[1693415760109,0.07337319,222.76,222.44,0.82257596]
[1693415760307,0.07337319,222.76,222.45,0.82257596]
[1693415760510,0.07337319,222.76,222.44,0.82257596]
[1693415760710,0.07337319,222.76,222.45,0.82257596]
[1693415760906,0.07337319,222.76,222.44,0.82257596]
[1693415761112,0.07337319,222.76,222.45,0.82257596]
[1693415761411,0.07337319,222.76,222.44,0.82257596]
[1693415761614,0.07337319,222.76,222.45,0.82257596]
[1693415761911,0.07337319,222.76,222.46,0.82257596]
[1693415762111,0.07337319,222.76,222.44,0.82257596]
[1693415762311,0.07337319,222.76,222.45,0.82257596]
[1693415762512,0.07337319,222.76,222.44,0.82257596]
[1693415762714,0.07337319,222.76,222.45,0.82257596]
[1693415762908,0.07337319,222.76,222.44,0.82257596]
[1693415763110,0.07337319,222.76,222.45,0.82257596]
[1693415763307,0.07337319,222.76,222.44,0.82257596]
[1693415763510,0.07337319,222.76,222.45,0.82257596]
[1693415763710,0.07337319,222.76,222.46,0.82257596]
[1693415763906,0.07337319,222.76,222.44,0.82257596]
[1693415764112,0.07337319,222.76,222.45,0.82257596]
[1693415764411,0.07337319,222.76,222.46,0.82257596]
[1693415764611,0.07337319,222.76,222.44,0.82257596]
[1693415775719,0.07337319,222.76,222.44,0.89575497]
[1693415775919,0.07337319,222.76,222.45,0.82257596]
[1693415776719,0.07337319,222.76,222.45,0.89575497]
[1693415776915,0.07337319,222.75,222.46,0.82257596]
[1693415778119,0.07337319,222.75,222.46,0.89575497]
[1693415778319,0.07337319,222.76,222.47,0.82257596]
[1693415778821,0.07337319,222.75,222.47,0.82257596]
[1693415779821,0.07337319,222.75,222.47,0.89575497]
[1693415780018,0.07337319,222.75,222.48,0.82257596]
[1693415780826,0.07337319,222.74,222.48,0.89575497]
[1693415781124,0.07337319,222.74,222.49,0.82257596]
[1693415781725,0.07337319,222.73,222.49,0.82257596]
[1693415782722,0.07337319,222.72,222.49,0.89575497]
[1693415782924,0.07337319,222.72,222.5,0.82257596]
[1693415784831,0.07337319,222.72,222.5,0.89575497]
[1693415785030,0.07337319,222.72,222.51,0.82257596]
[1693415785529,0.07337319,222.72,222.5,0.82257596]
[1693415785824,0.07337319,222.72,222.51,0.82257596]
[1693415786029,0.07337319,222.72,222.5,0.82257596]
[1693415786226,0.07337319,222.72,222.51,0.82257596]
[1693415786530,0.07337319,222.72,222.52,0.82257596]
[1693415786826,0.07337319,222.72,222.49,0.07317901]
[1693415787130,0.07337319,222.72,222.5,0.82340732]
[1693415797040,0.07337319,222.72,222.5,0.89658633]
[1693415797339,0.07337319,222.72,222.51,0.82340732]
[1693415797738,0.07337319,222.72,222.5,0.89658633]
[1693415797939,0.07337319,222.72,222.51,0.82340732]
[1693415798339,2.44577304,222.86,222.51,0.82340732]
[1693415798543,0.07362996,222.72,222.5,0.07341395]
[1693415798740,0.07362996,222.72,222.51,0.82340732]
[1693415800340,0.07362996,222.72,222.52,0.82340732]
[1693415800540,0.07362996,222.72,222.5,0.82340732]
[1693415801942,0.07362996,222.72,222.5,0.89682127]
[1693415802141,0.07362996,222.72,222.51,0.82340732]
[1693415804946,0.07362996,222.72,222.49,0.07341395]
[1693415805245,0.07362996,222.72,222.5,0.82279476]
[1693415805844,0.07362996,222.71,222.5,0.89620871]
[1693415806045,0.07362996,222.71,222.51,0.82279476]
[1693415806639,0.07362996,222.71,222.5,0.82279476]
[1693415807046,0.07362996,222.71,222.5,0.89620871]
[1693415807345,0.07362996,222.71,222.51,0.82279476]
[1693415815954,0.07362996,222.7,222.51,0.82279476]
[1693415820058,0.07362996,222.7,222.5,0.89620871]
[1693415820253,0.07362996,222.7,222.51,0.82292996]
[1693415822258,0.07362996,222.7,222.5,0.82292996]
[1693415823055,0.07362996,222.69,222.5,0.82292996]
[1693415823259,0.07362996,222.69,222.49,0.82292996]
[1693415823553,0.07362996,222.69,222.48,0.07341395]
[1693415823760,0.07362996,222.7,222.49,0.82305156]
[1693415825853,0.07362996,222.7,222.48,0.82305156]
[1693415826057,0.07362996,222.7,222.49,0.82311434]
[1693415826252,0.07362996,222.7,222.48,0.82311434]
[1693415826456,0.07362996,222.7,222.49,0.82311391]
[1693415826655,0.07362996,222.7,222.48,0.82311391]
[1693415826858,0.07362996,222.7,222.49,0.82309751]
[1693415827059,0.07362996,222.7,222.48,0.82309751]
[1693415827259,0.07362996,222.7,222.49,0.82310238]
[1693415827454,0.07362996,222.7,222.47,0.07341395]
[1693415827455,0.07362996,222.7,222.48,0.82310238]
[1693415827659,0.07362996,222.7,222.49,0.82310117]
[1693415827859,0.07362996,222.7,222.48,0.82310117]
[1693415828059,0.07362996,222.7,222.49,0.82310097]
[1693415828360,0.07362996,222.7,222.47,0.07341395]
[1693415828563,0.07362996,222.7,222.48,0.82309894]
[1693415829758,0.07362996,222.7,222.47,0.82309894]
[1693415829956,0.07362996,222.7,222.48,0.82321313]
[1693415830155,0.07362996,222.7,222.46,0.07341395]
[1693415830359,0.07362996,222.7,222.47,0.82321148]
[1693415830560,0.07362996,222.7,222.46,0.07341395]
[1693415830862,0.07362996,222.65,222.4,0.07341395]
[1693415831160,0.07362996,222.65,222.41,0.82380278]
[1693415831757,0.07362996,222.66,222.41,0.82380278]
[1693415831955,0.07362996,222.66,222.4,0.82380278]
[1693415832158,0.07362996,222.66,222.41,0.82380278]
[1693415832359,0.07362996,222.66,222.39,0.82380278]
[1693415832561,0.07362996,222.66,222.4,0.82380278]
[1693415832759,0.07362996,222.67,222.41,0.82380278]
[1693415832964,0.07362996,222.67,222.42,0.82380278]
[1693415833163,0.07362996,222.67,222.43,0.82380278]
[1693415833362,0.07362996,222.67,222.37,0.07341395]
[1693415833363,0.07362996,222.68,222.37,0.07341395]
[1693415833565,0.07362996,222.68,222.38,0.82380608]
[1693415833763,0.07362996,222.68,222.36,0.07341395]
[1693415833764,0.07362996,222.68,222.39,0.82380608]
[1693415834064,0.07362996,222.68,222.4,0.82380608]
[1693415834261,0.07362996,222.68,222.41,0.82380608]
[1693415834459,0.07362996,222.68,222.42,0.82380608]
[1693415834663,0.07362996,222.68,222.43,0.82380608]
[1693415834961,0.07362996,222.69,222.36,0.07341395]
[1693415835165,0.07362996,222.69,222.37,0.82379761]
[1693415835764,0.07362996,222.7,222.37,0.82379761]
[1693415836063,0.07362996,222.7,222.38,0.82379761]
[1693415836257,0.07362996,222.7,222.36,0.82379761]
[1693415836460,0.07362996,222.7,222.37,0.82379761]
[1693415836660,0.07362996,222.7,222.36,0.82379761]
[1693415836864,0.07362996,222.7,222.37,0.82379761]
[1693415837062,0.07362996,222.7,222.36,0.82379761]
[1693415837263,0.07362996,222.7,222.37,0.82379761]
[1693415837465,0.07362996,222.7,222.36,0.82379761]
[1693415837666,0.07362996,222.71,222.37,0.82379761]
[1693415838065,0.07362996,222.71,222.36,0.82379761]
[1693415838264,0.07362996,222.71,222.34,0.07341395]
[1693415838265,0.07362996,222.71,222.37,0.82379761]
[1693415838464,0.07362996,222.71,222.38,0.82379761]
[1693415838661,0.07362996,222.71,222.39,0.82379761]
[1693415838865,0.07362996,222.71,222.4,0.82379761]
[1693415839065,0.07362996,222.71,222.35,0.82379761]
[1693415839267,0.07362996,222.71,222.36,0.82379761]
[1693415839463,0.07362996,222.71,222.35,0.82379761]
[1693415839662,0.07362996,222.71,222.36,0.82379761]
[1693415839868,0.07362996,222.71,222.35,0.82379761]
[1693415840170,0.07362996,222.71,222.36,0.82379761]
[1693415840369,0.07362996,222.71,222.37,0.82379761]
[1693415840569,0.07362996,222.72,222.35,0.82379761]
[1693415840773,0.07362996,222.72,222.36,0.82379761]
[1693415840964,0.07362996,222.72,222.35,0.82379761]
[1693415841168,0.07362996,222.72,222.36,0.82379761]
[1693415841369,0.07362996,222.72,222.35,0.82379761]
[1693415841568,0.07362996,222.72,222.36,0.82379761]
[1693415841764,0.07362996,222.72,222.35,0.82379761]
[1693415841964,0.07362996,222.72,222.36,0.82379761]
[1693415842167,0.07362996,222.72,222.37,0.82379761]
[1693415842367,0.07362996,222.72,222.38,0.82379761]
[1693415842567,0.07362996,222.72,222.35,0.82379761]
[1693415842767,0.07362996,222.72,222.36,0.82379761]
[1693415842967,0.07362996,222.72,222.37,0.82379761]
[1693415843170,0.07362996,222.72,222.35,0.82379761]
[1693415843371,0.07362996,222.72,222.36,0.82379761]
[1693415843570,0.07362996,222.72,222.35,0.82379761]
[1693415843770,0.07362996,222.72,222.36,0.82379761]
[1693415844066,0.07362996,222.72,222.37,0.82379761]
[1693415844270,0.07362996,222.72,222.38,0.82379761]
[1693415844465,0.07362996,222.72,222.35,0.82379761]
[1693415844668,0.07362996,222.72,222.36,0.82379761]
[1693415844873,0.07362996,222.72,222.35,0.82379761]
[1693415845072,0.07362996,222.72,222.36,0.82379761]
[1693415845271,0.07362996,222.72,222.37,0.82379761]
[1693415845472,0.07362996,222.72,222.38,0.82379761]
[1693415845671,0.07362996,222.72,222.35,0.82379761]
[1693415845874,0.07362996,222.72,222.36,0.82379761]
[1693415846072,0.07362996,222.72,222.35,0.89721156]
[1693415846272,0.07362996,222.72,222.36,0.82379761]
[1693415846474,0.07362996,222.72,222.35,0.89721156]
[1693415846675,0.07362996,222.72,222.36,0.82379761]
[1693415846866,0.07362996,222.72,222.38,0.07341395]
[1693415847069,0.07362996,222.77,222.39,0.89721156]
[1693415847271,0.07362996,222.77,222.4,0.89721156]
[1693415847471,0.07362996,222.77,222.41,0.82379761]
[1693415847973,0.07362996,222.78,222.41,0.82379761]
[1693415848473,0.07362996,222.78,222.41,0.89721156]
[1693415848774,0.07362996,222.78,222.42,0.82379761]
[1693415853472,0.07362996,222.78,222.42,0.89721156]
[1693415853672,0.07362996,222.78,222.43,0.82379761]
[1693415853877,0.07362996,222.78,222.44,0.82379761]
[1693415854076,0.07362996,222.78,222.45,0.82379761]
[1693415854378,0.07362996,222.78,222.46,0.82379761]
[1693415854578,0.07362996,222.78,222.47,0.82379761]
[1693415854776,0.07362996,222.78,222.48,0.82379761]
[1693415854978,0.07362996,222.78,222.42,0.82379761]
[1693415855177,0.07362996,222.78,222.43,0.82379761]
[1693415855379,0.07362996,222.78,222.44,0.82379761]
[1693415855579,0.07362996,222.78,222.43,0.82379761]